[Event "Early-Titled-Tuesday-Blitz-October-24-2023"]
[Site "Chess.com"]
[Date "2023.10.24"]
[Round "6"]
[White "ukchessbomber"]
[Black "AvitalBor"]
[Result "0-1"]
[WhiteElo "2659"]
[BlackElo "2853"]
[TimeControl "180+1"]
[EndTime "9:05:22 PDT"]
[Termination "AvitalBor won by checkmate"]

1. a3 {[%clk 0:03:00.9]} 1... a5 {[%clk 0:02:58.8]} 2. g3 {[%clk 0:02:51]} 2...
d5 {[%clk 0:02:58.1]} 3. Bg2 {[%clk 0:02:51.4]} 3... e5 {[%clk 0:02:58]} 4. b3
{[%clk 0:02:45.9]} 4... Nf6 {[%clk 0:02:56.8]} 5. Bb2 {[%clk 0:02:46]} 5... Bd6
{[%clk 0:02:56.6]} 6. e3 {[%clk 0:02:45.6]} 6... O-O {[%clk 0:02:56.3]} 7. Ne2
{[%clk 0:02:46]} 7... c6 {[%clk 0:02:55.5]} 8. O-O {[%clk 0:02:46.3]} 8... Bf5
{[%clk 0:02:50.6]} 9. d3 {[%clk 0:02:46.5]} 9... Qd7 {[%clk 0:02:47.5]} 10. Nd2
{[%clk 0:02:46.7]} 10... Bh3 {[%clk 0:02:47.5]} 11. c4 {[%clk 0:02:47.2]} 11...
Na6 {[%clk 0:02:45.3]} 12. Qc2 {[%clk 0:02:47.6]} 12... Rac8 {[%clk 0:02:41.9]}
13. Bc3 {[%clk 0:02:47.7]} 13... b6 {[%clk 0:02:39.1]} 14. Qb2 {[%clk
0:02:46.8]} 14... Nc5 {[%clk 0:02:32.1]} 15. Qc2 {[%clk 0:02:41.6]} 15... Bxg2
{[%clk 0:02:28.2]} 16. Kxg2 {[%clk 0:02:41.8]} 16... Qf5 {[%clk 0:02:28.4]} 17.
e4 {[%clk 0:02:29.9]} 17... dxe4 {[%clk 0:02:27.9]} 18. dxe4 {[%clk 0:02:30.8]}
18... Nfxe4 {[%clk 0:02:25.2]} 19. b4 {[%clk 0:02:21.9]} 19... Nxg3 {[%clk
0:01:46.2]} 20. Qxf5 {[%clk 0:02:18.8]} 20... Nxf5 {[%clk 0:01:47.1]} 21. bxc5
{[%clk 0:02:19.6]} 21... Bxc5 {[%clk 0:01:47.6]} 22. Ne4 {[%clk 0:02:17.5]}
22... Bd4 {[%clk 0:01:45.8]} 23. Rab1 {[%clk 0:02:13.5]} 23... Rb8 {[%clk
0:01:42]} 24. Rfd1 {[%clk 0:02:04.6]} 24... Rfd8 {[%clk 0:01:40.7]} 25. a4
{[%clk 0:01:46.2]} 25... f6 {[%clk 0:01:28.3]} 26. Nxd4 {[%clk 0:01:30.8]} 26...
exd4 {[%clk 0:01:27.7]} 27. Be1 {[%clk 0:01:31.5]} 27... c5 {[%clk 0:01:17.2]}
28. Rd3 {[%clk 0:01:05.4]} 28... Re8 {[%clk 0:01:15.2]} 29. Ng3 {[%clk
0:01:04.7]} 29... Nd6 {[%clk 0:01:14]} 30. Rdb3 {[%clk 0:00:55.9]} 30... Nxc4
{[%clk 0:01:11]} 31. Nf5 {[%clk 0:00:56]} 31... g6 {[%clk 0:01:04.7]} 32. Nh4
{[%clk 0:00:38.5]} 32... Re2 {[%clk 0:00:51.2]} 33. Nf3 {[%clk 0:00:34]} 33...
Ra2 {[%clk 0:00:49.1]} 34. Rb5 {[%clk 0:00:28.7]} 34... Re8 {[%clk 0:00:37.9]}
35. Rc1 {[%clk 0:00:16.9]} 35... Rxa4 {[%clk 0:00:37.8]} 36. Nd2 {[%clk
0:00:17.6]} 36... Nxd2 {[%clk 0:00:23.6]} 37. Bxd2 {[%clk 0:00:18.5]} 37... Re2
{[%clk 0:00:23.8]} 38. Bf4 {[%clk 0:00:18.5]} 38... Rb4 {[%clk 0:00:24]} 39. Rb1
{[%clk 0:00:17.4]} 39... d3 {[%clk 0:00:18.2]} 40. Rxb6 {[%clk 0:00:15.5]} 40...
Rxf4 {[%clk 0:00:17.7]} 41. Rd6 {[%clk 0:00:10.8]} 41... Kg7 {[%clk 0:00:16.3]}
42. Rb7+ {[%clk 0:00:06]} 42... Kh6 {[%clk 0:00:16.1]} 43. Rdd7 {[%clk
0:00:06.9]} 43... Rfxf2+ {[%clk 0:00:15.7]} 44. Kg3 {[%clk 0:00:06.7]} 44...
Rg2+ {[%clk 0:00:15.7]} 45. Kf3 {[%clk 0:00:05.6]} 45... Rxh2 {[%clk 0:00:16.1]}
46. Rxh7+ {[%clk 0:00:04]} 46... Kg5 {[%clk 0:00:16.5]} 47. Rhd7 {[%clk
0:00:04.9]} 47... c4 {[%clk 0:00:15.6]} 48. Rb5+ {[%clk 0:00:04]} 48... f5
{[%clk 0:00:15.5]} 49. Rd6 {[%clk 0:00:03.9]} 49... Rh3# {[%clk 0:00:14.2]} 0-1

[Event "Early-Titled-Tuesday-Blitz-October-24-2023"]
[Site "Chess.com"]
[Date "2023.10.24"]
[Round "6"]
[White "giomar27"]
[Black "Martial2008"]
[Result "1-0"]
[WhiteElo "2378"]
[BlackElo "2620"]
[TimeControl "180+1"]
[EndTime "9:05:22 PDT"]
[Termination "giomar27 won by checkmate"]

1. e4 {[%clk 0:03:00.9]} 1... e5 {[%clk 0:02:59.9]} 2. Nf3 {[%clk 0:02:59.8]}
2... Nc6 {[%clk 0:03:00.5]} 3. Nc3 {[%clk 0:03:00.3]} 3... Nf6 {[%clk
0:02:58.8]} 4. d4 {[%clk 0:03:00.5]} 4... Bd6 {[%clk 0:02:59.4]} 5. dxe5 {[%clk
0:02:31.5]} 5... Nxe5 {[%clk 0:03:00.3]} 6. Nd4 {[%clk 0:02:31.5]} 6... O-O
{[%clk 0:02:52]} 7. f4 {[%clk 0:02:23.7]} 7... Bb4 {[%clk 0:01:41.3]} 8. fxe5
{[%clk 0:02:17.3]} 8... Nxe4 {[%clk 0:01:38.2]} 9. Qf3 {[%clk 0:02:06.9]} 9...
Nxc3 {[%clk 0:01:35.5]} 10. bxc3 {[%clk 0:02:06.1]} 10... Qh4+ {[%clk
0:01:36.1]} 11. Kd1 {[%clk 0:01:34]} 11... d6 {[%clk 0:01:34.4]} 12. g3 {[%clk
0:01:16.7]} 12... Qg4 {[%clk 0:01:22.3]} 13. Qxg4 {[%clk 0:01:11.7]} 13... Bxg4+
{[%clk 0:01:23.2]} 14. Be2 {[%clk 0:01:12.3]} 14... Bxc3 {[%clk 0:01:20.3]} 15.
Rb1 {[%clk 0:00:49.9]} 15... Bh3 {[%clk 0:00:57.4]} 16. Nb5 {[%clk 0:00:12.9]}
16... Bxe5 {[%clk 0:00:55]} 17. Nxc7 {[%clk 0:00:11.3]} 17... Rac8 {[%clk
0:00:55.6]} 18. Nd5 {[%clk 0:00:11.3]} 18... Bf5 {[%clk 0:00:56.3]} 19. Ne7+
{[%clk 0:00:11.3]} 19... Kh8 {[%clk 0:00:55.3]} 20. Nxf5 {[%clk 0:00:10.6]}
20... g6 {[%clk 0:00:53.7]} 21. Ne3 {[%clk 0:00:09.8]} 21... d5 {[%clk
0:00:53.3]} 22. Bb2 {[%clk 0:00:09.5]} 22... d4 {[%clk 0:00:53.3]} 23. Ng4
{[%clk 0:00:09.3]} 23... Bg7 {[%clk 0:00:53.3]} 24. Kd2 {[%clk 0:00:08.9]} 24...
h5 {[%clk 0:00:53.7]} 25. Nf2 {[%clk 0:00:09.2]} 25... Rfe8 {[%clk 0:00:54.3]}
26. Nd3 {[%clk 0:00:09.7]} 26... Bh6+ {[%clk 0:00:53.1]} 27. Nf4 {[%clk
0:00:05.7]} 27... Bg7 {[%clk 0:00:50.4]} 28. Rhe1 {[%clk 0:00:05.7]} 28... Red8
{[%clk 0:00:50]} 29. Bd3 {[%clk 0:00:04.4]} 29... Kg8 {[%clk 0:00:50.6]} 30. Ke2
{[%clk 0:00:04.7]} 30... Bh6 {[%clk 0:00:50.9]} 31. Kf2 {[%clk 0:00:04.7]} 31...
f5 {[%clk 0:00:51.4]} 32. Re2 {[%clk 0:00:04.6]} 32... Kf7 {[%clk 0:00:50.3]}
33. Rbe1 {[%clk 0:00:05]} 33... Bg5 {[%clk 0:00:51]} 34. Ne6 {[%clk 0:00:04.4]}
34... Be3+ {[%clk 0:00:49.1]} 35. Kg2 {[%clk 0:00:03.7]} 35... Kxe6 {[%clk
0:00:49.1]} 36. Bxd4 {[%clk 0:00:03.6]} 36... Rxd4 {[%clk 0:00:49]} 37. Rxe3+
{[%clk 0:00:04.2]} 37... Kf6 {[%clk 0:00:49.7]} 38. Re6+ {[%clk 0:00:04.3]}
38... Kg5 {[%clk 0:00:45.6]} 39. h4+ {[%clk 0:00:04]} 39... Kh6 {[%clk
0:00:46.1]} 40. Bxf5 {[%clk 0:00:03.8]} 40... Rd2+ {[%clk 0:00:46.1]} 41. Kh3
{[%clk 0:00:03.6]} 41... Rg8 {[%clk 0:00:46.7]} 42. Bd3 {[%clk 0:00:02.7]} 42...
Rf2 {[%clk 0:00:44.6]} 43. Re7 {[%clk 0:00:02.8]} 43... Rg7 {[%clk 0:00:44.3]}
44. Rxg7 {[%clk 0:00:03]} 44... Kxg7 {[%clk 0:00:45.2]} 45. Re7+ {[%clk
0:00:03.4]} 45... Kf6 {[%clk 0:00:45.8]} 46. Rxb7 {[%clk 0:00:04.3]} 46... g5
{[%clk 0:00:45.5]} 47. hxg5+ {[%clk 0:00:03.9]} 47... Kxg5 {[%clk 0:00:46.2]}
48. Rb5+ {[%clk 0:00:04.4]} 48... Kh6 {[%clk 0:00:46]} 49. Ra5 {[%clk
0:00:04.9]} 49... Rf7 {[%clk 0:00:45.8]} 50. Ra6+ {[%clk 0:00:05.7]} 50... Kg7
{[%clk 0:00:46]} 51. Ra5 {[%clk 0:00:06.3]} 51... Kh6 {[%clk 0:00:46.2]} 52.
Ra6+ {[%clk 0:00:05.9]} 52... Kg7 {[%clk 0:00:46.6]} 53. Rg6+ {[%clk 0:00:06.8]}
53... Kf8 {[%clk 0:00:46.5]} 54. Kh4 {[%clk 0:00:07.7]} 54... Rf3 {[%clk
0:00:46.1]} 55. Rg5 {[%clk 0:00:07.4]} 55... Rf2 {[%clk 0:00:45.7]} 56. Rf5+
{[%clk 0:00:07.8]} 56... Rxf5 {[%clk 0:00:45.7]} 57. Bxf5 {[%clk 0:00:08.7]}
57... Kg7 {[%clk 0:00:46.4]} 58. Kxh5 {[%clk 0:00:09.6]} 58... Kf6 {[%clk
0:00:47.3]} 59. Bd3 {[%clk 0:00:10.4]} 59... Ke5 {[%clk 0:00:48.1]} 60. g4
{[%clk 0:00:11.3]} 60... Kd4 {[%clk 0:00:48.9]} 61. Kh6 {[%clk 0:00:12.2]} 61...
Kc3 {[%clk 0:00:49.7]} 62. g5 {[%clk 0:00:13.1]} 62... a5 {[%clk 0:00:50.2]} 63.
g6 {[%clk 0:00:14]} 63... a4 {[%clk 0:00:51]} 64. g7 {[%clk 0:00:14.9]} 64... a3
{[%clk 0:00:51.9]} 65. g8=Q {[%clk 0:00:15.5]} 65... Kb2 {[%clk 0:00:52.8]} 66.
Qb3+ {[%clk 0:00:15.9]} 66... Ka1 {[%clk 0:00:53.7]} 67. Qc3+ {[%clk 0:00:15.8]}
67... Kxa2 {[%clk 0:00:54.3]} 68. Qb3+ {[%clk 0:00:15.6]} 68... Ka1 {[%clk
0:00:54.6]} 69. Qxa3+ {[%clk 0:00:16]} 69... Kb1 {[%clk 0:00:54.4]} 70. c4#
{[%clk 0:00:16.3]} 1-0

[Event "Early-Titled-Tuesday-Blitz-October-24-2023"]
[Site "Chess.com"]
[Date "2023.10.24"]
[Round "6"]
[White "fen_fire"]
[Black "Artemiki"]
[Result "0-1"]
[WhiteElo "2532"]
[BlackElo "2353"]
[TimeControl "180+1"]
[EndTime "9:05:23 PDT"]
[Termination "Artemiki won by checkmate"]

1. b3 {[%clk 0:03:00.9]} 1... Nf6 {[%clk 0:02:59.4]} 2. Bb2 {[%clk 0:03:01.5]}
2... e6 {[%clk 0:02:59.2]} 3. g3 {[%clk 0:02:58.8]} 3... d5 {[%clk 0:02:59.4]}
4. Bg2 {[%clk 0:02:59.2]} 4... Be7 {[%clk 0:02:57.4]} 5. Nf3 {[%clk 0:02:59.8]}
5... O-O {[%clk 0:02:57.7]} 6. O-O {[%clk 0:03:00.7]} 6... c5 {[%clk 0:02:58.2]}
7. e3 {[%clk 0:02:58.8]} 7... Nc6 {[%clk 0:02:58.1]} 8. a3 {[%clk 0:02:52.3]}
8... Qc7 {[%clk 0:02:55.2]} 9. c4 {[%clk 0:02:48.8]} 9... Rd8 {[%clk 0:02:52.3]}
10. cxd5 {[%clk 0:02:48.4]} 10... Nxd5 {[%clk 0:02:50.8]} 11. Qe2 {[%clk
0:02:44.7]} 11... Bf6 {[%clk 0:02:50]} 12. Bxf6 {[%clk 0:02:36.3]} 12... Nxf6
{[%clk 0:02:50.9]} 13. Nc3 {[%clk 0:02:33.4]} 13... e5 {[%clk 0:02:47.8]} 14. d3
{[%clk 0:02:27.6]} 14... Bf5 {[%clk 0:02:43.3]} 15. Rfd1 {[%clk 0:02:20]} 15...
Rd7 {[%clk 0:02:39.5]} 16. Rac1 {[%clk 0:02:12.1]} 16... Rad8 {[%clk 0:02:34.8]}
17. Ne1 {[%clk 0:02:12.2]} 17... Be6 {[%clk 0:02:01.7]} 18. Qb2 {[%clk
0:02:02.9]} 18... Qb6 {[%clk 0:01:37.6]} 19. b4 {[%clk 0:01:36.9]} 19... cxb4
{[%clk 0:01:33]} 20. Na4 {[%clk 0:01:36.8]} 20... Qa5 {[%clk 0:01:22.8]} 21. Nc5
{[%clk 0:00:57.4]} 21... bxa3 {[%clk 0:01:18.5]} 22. Qa1 {[%clk 0:00:58]} 22...
Re7 {[%clk 0:01:18.2]} 23. Rc3 {[%clk 0:00:41.9]} 23... a2 {[%clk 0:01:10.5]}
24. Nxe6 {[%clk 0:00:32.7]} 24... Rxe6 {[%clk 0:01:00.9]} 25. Rd2 {[%clk
0:00:33.3]} 25... Nb4 {[%clk 0:00:55]} 26. Nc2 {[%clk 0:00:19.1]} 26... Nbd5
{[%clk 0:00:49.6]} 27. Ra3 {[%clk 0:00:03.3]} 27... Qxd2 {[%clk 0:00:45.7]} 28.
Rxa2 {[%clk 0:00:04.2]} 28... Qc3 {[%clk 0:00:38.8]} 29. Qb1 {[%clk 0:00:03.7]}
29... Rb6 {[%clk 0:00:35.6]} 30. Qd1 {[%clk 0:00:03]} 30... Nb4 {[%clk
0:00:30.4]} 31. Nxb4 {[%clk 0:00:02.5]} 31... Qxb4 {[%clk 0:00:30]} 32. Ra1
{[%clk 0:00:03.4]} 32... Qb3 {[%clk 0:00:28]} 33. Qf1 {[%clk 0:00:02.9]} 33...
Qxd3 {[%clk 0:00:26.3]} 34. Qe1 {[%clk 0:00:03.8]} 34... Rbd6 {[%clk 0:00:21.1]}
35. h3 {[%clk 0:00:03.7]} 35... Qd1 {[%clk 0:00:20.5]} 36. Kh2 {[%clk
0:00:04.2]} 36... Qxe1 {[%clk 0:00:20.5]} 37. Rxe1 {[%clk 0:00:04.8]} 37... Rd1
{[%clk 0:00:21.1]} 38. Re2 {[%clk 0:00:05.7]} 38... R8d2 {[%clk 0:00:21]} 39.
Rxd2 {[%clk 0:00:06.6]} 39... Rxd2 {[%clk 0:00:21.6]} 40. Bxb7 {[%clk
0:00:07.5]} 40... a5 {[%clk 0:00:21.7]} 41. Kg1 {[%clk 0:00:08.4]} 41... a4
{[%clk 0:00:21.8]} 42. g4 {[%clk 0:00:08.5]} 42... a3 {[%clk 0:00:22.1]} 43. g5
{[%clk 0:00:09.4]} 43... a2 {[%clk 0:00:22.1]} 44. gxf6 {[%clk 0:00:09.7]} 44...
a1=Q+ {[%clk 0:00:22.9]} 45. Kg2 {[%clk 0:00:10.5]} 45... gxf6 {[%clk
0:00:22.4]} 46. Be4 {[%clk 0:00:10.4]} 46... Qe1 {[%clk 0:00:22.6]} 47. Kg3
{[%clk 0:00:07.2]} 47... Qxf2+ {[%clk 0:00:22.1]} 48. Kg4 {[%clk 0:00:08.1]}
48... Qxe3 {[%clk 0:00:20.3]} 49. Bf3 {[%clk 0:00:05.1]} 49... Qg5# {[%clk
0:00:19.3]} 0-1

[Event "Early-Titled-Tuesday-Blitz-October-24-2023"]
[Site "Chess.com"]
[Date "2023.10.24"]
[Round "6"]
[White "RandomNoob04"]
[Black "MidnightFox"]
[Result "1-0"]
[WhiteElo "2629"]
[BlackElo "2494"]
[TimeControl "180+1"]
[EndTime "9:05:24 PDT"]
[Termination "RandomNoob04 won by resignation"]

1. e4 {[%clk 0:03:00.9]} 1... c5 {[%clk 0:02:56.8]} 2. d4 {[%clk 0:03:00.9]}
2... cxd4 {[%clk 0:02:57.7]} 3. c3 {[%clk 0:03:01.4]} 3... d3 {[%clk 0:02:57.1]}
4. Bxd3 {[%clk 0:03:01.2]} 4... d6 {[%clk 0:02:55.1]} 5. Nf3 {[%clk 0:03:02.1]}
5... Nf6 {[%clk 0:02:55.1]} 6. h3 {[%clk 0:03:02.4]} 6... a6 {[%clk 0:02:54.1]}
7. O-O {[%clk 0:03:03.3]} 7... e6 {[%clk 0:02:54.1]} 8. c4 {[%clk 0:03:03.2]}
8... b6 {[%clk 0:02:54.5]} 9. Nc3 {[%clk 0:03:03.6]} 9... Nbd7 {[%clk
0:02:52.2]} 10. Bf4 {[%clk 0:03:02.5]} 10... Qc7 {[%clk 0:02:48.5]} 11. Re1
{[%clk 0:02:58.7]} 11... Ne5 {[%clk 0:02:43.2]} 12. Rc1 {[%clk 0:02:49.1]} 12...
Be7 {[%clk 0:02:39.8]} 13. Be2 {[%clk 0:02:01.8]} 13... O-O {[%clk 0:02:36.4]}
14. Qd4 {[%clk 0:02:01.7]} 14... Nfd7 {[%clk 0:02:24.3]} 15. Red1 {[%clk
0:01:51.8]} 15... Bb7 {[%clk 0:02:20.1]} 16. Bxe5 {[%clk 0:01:51.5]} 16... Nxe5
{[%clk 0:02:17.4]} 17. Nxe5 {[%clk 0:01:51.6]} 17... dxe5 {[%clk 0:02:18.3]} 18.
Qd7 {[%clk 0:01:52.4]} 18... Rac8 {[%clk 0:02:15.3]} 19. Na4 {[%clk 0:01:44]}
19... Bc5 {[%clk 0:01:55.9]} 20. Nxc5 {[%clk 0:01:41.7]} 20... bxc5 {[%clk
0:01:54.1]} 21. Qxc7 {[%clk 0:01:36.6]} 21... Rxc7 {[%clk 0:01:52.6]} 22. f3
{[%clk 0:01:37.5]} 22... Rb8 {[%clk 0:01:46.2]} 23. Rd6 {[%clk 0:01:36.5]} 23...
Kf8 {[%clk 0:01:44.7]} 24. Rcd1 {[%clk 0:01:34.7]} 24... Ke7 {[%clk 0:01:44.9]}
25. Rb6 {[%clk 0:01:34.5]} 25... Rd8 {[%clk 0:01:40.1]} 26. Rxd8 {[%clk
0:01:33.6]} 26... Kxd8 {[%clk 0:01:41]} 27. Rd6+ {[%clk 0:01:32]} 27... Ke7
{[%clk 0:01:35.9]} 28. Rd2 {[%clk 0:01:31.9]} 28... Rd7 {[%clk 0:01:29.5]} 29.
Rxd7+ {[%clk 0:01:31.7]} 29... Kxd7 {[%clk 0:01:30.4]} 30. Kf2 {[%clk
0:01:32.6]} 30... Bc6 {[%clk 0:01:24.7]} 31. Ke3 {[%clk 0:01:32]} 31... Kd6
{[%clk 0:01:20.1]} 32. a3 {[%clk 0:01:31.6]} 32... a5 {[%clk 0:01:18.5]} 33. b3
{[%clk 0:01:31]} 33... f5 {[%clk 0:01:15.7]} 34. Bd3 {[%clk 0:01:30.7]} 34... g6
{[%clk 0:01:14.1]} 35. Kd2 {[%clk 0:01:30.2]} 35... Bd7 {[%clk 0:01:06.4]} 36.
Kc3 {[%clk 0:01:28.7]} 36... Kc6 {[%clk 0:01:06]} 37. b4 {[%clk 0:01:28.1]}
37... axb4+ {[%clk 0:01:05.2]} 38. axb4 {[%clk 0:01:29]} 38... cxb4+ {[%clk
0:01:06]} 39. Kxb4 {[%clk 0:01:29.5]} 39... Kb6 {[%clk 0:01:06.1]} 40. c5+
{[%clk 0:01:29.6]} 40... Kc7 {[%clk 0:01:05.4]} 41. Bb5 {[%clk 0:01:27.3]} 41...
Bc8 {[%clk 0:01:02.2]} 42. Be8 {[%clk 0:01:27.2]} 42... Bb7 {[%clk 0:00:59.3]}
43. Kb5 {[%clk 0:01:23.5]} 43... fxe4 {[%clk 0:00:57.7]} 44. fxe4 {[%clk
0:01:03]} 44... Bxe4 {[%clk 0:00:58.6]} 45. g3 {[%clk 0:01:03.2]} 45... Bd3+
{[%clk 0:00:54.1]} 46. Kb4 {[%clk 0:01:03.1]} 46... e4 {[%clk 0:00:50.4]} 47.
Kc3 {[%clk 0:01:02.8]} 47... e5 {[%clk 0:00:50.9]} 48. h4 {[%clk 0:00:58.4]}
48... Ba6 {[%clk 0:00:40.2]} 49. Kd2 {[%clk 0:00:55.7]} 49... Bb7 {[%clk
0:00:30.5]} 50. Ke3 {[%clk 0:00:55.6]} 50... Bd5 {[%clk 0:00:24.5]} 51. g4
{[%clk 0:00:49.9]} 51... Bb7 {[%clk 0:00:23]} 52. Bf7 {[%clk 0:00:40.5]} 52...
Kc6 {[%clk 0:00:23]} 53. Kxe4 {[%clk 0:00:40.7]} 53... Kxc5+ {[%clk 0:00:22.9]}
54. Kxe5 {[%clk 0:00:41.2]} 54... Bf3 {[%clk 0:00:19.9]} 55. g5 {[%clk
0:00:41.5]} 55... Kc6 {[%clk 0:00:17.5]} 56. Bg8 {[%clk 0:00:40.5]} 56... Kd7
{[%clk 0:00:16.6]} 57. Bxh7 {[%clk 0:00:40.2]} 57... Bh5 {[%clk 0:00:15.9]} 58.
Kf6 {[%clk 0:00:40.2]} 58... Bd1 {[%clk 0:00:13.1]} 59. Bxg6 {[%clk 0:00:41.1]}
59... Kd6 {[%clk 0:00:13.1]} 60. h5 {[%clk 0:00:40.9]} 1-0

[Event "Early-Titled-Tuesday-Blitz-October-24-2023"]
[Site "Chess.com"]
[Date "2023.10.24"]
[Round "6"]
[White "masterofpuppets2"]
[Black "OhanyanEminChess"]
[Result "0-1"]
[WhiteElo "2551"]
[BlackElo "2822"]
[TimeControl "180+1"]
[EndTime "9:05:25 PDT"]
[Termination "OhanyanEminChess won on time"]

1. d4 {[%clk 0:03:00.9]} 1... d5 {[%clk 0:02:57.4]} 2. c4 {[%clk 0:03:00.9]}
2... c6 {[%clk 0:02:57.9]} 3. Nf3 {[%clk 0:03:00.9]} 3... Nf6 {[%clk 0:02:58.1]}
4. Nc3 {[%clk 0:03:01.5]} 4... e6 {[%clk 0:02:58]} 5. e3 {[%clk 0:03:01.3]} 5...
Nbd7 {[%clk 0:02:58.2]} 6. Qc2 {[%clk 0:03:01.6]} 6... Bd6 {[%clk 0:02:57]} 7.
b3 {[%clk 0:03:01.9]} 7... O-O {[%clk 0:02:42.9]} 8. Be2 {[%clk 0:03:01.5]} 8...
b6 {[%clk 0:02:42.5]} 9. O-O {[%clk 0:03:01.4]} 9... Bb7 {[%clk 0:02:41.9]} 10.
Bb2 {[%clk 0:03:01.8]} 10... Re8 {[%clk 0:02:40.6]} 11. Rad1 {[%clk 0:03:01.4]}
11... Rc8 {[%clk 0:02:38.2]} 12. e4 {[%clk 0:02:48.8]} 12... dxe4 {[%clk
0:02:25.8]} 13. Nxe4 {[%clk 0:02:48]} 13... Nxe4 {[%clk 0:02:26.5]} 14. Qxe4
{[%clk 0:02:48.7]} 14... Nf6 {[%clk 0:02:23.8]} 15. Qh4 {[%clk 0:02:43.7]} 15...
Nd7 {[%clk 0:02:06.5]} 16. Qe4 {[%clk 0:02:38.1]} 16... Nf6 {[%clk 0:02:05.9]}
17. Qh4 {[%clk 0:02:30.6]} 17... h6 {[%clk 0:02:02.8]} 18. Bd3 {[%clk 0:02:17]}
18... Be7 {[%clk 0:01:43.3]} 19. Ne5 {[%clk 0:02:11.1]} 19... Qc7 {[%clk
0:01:28.8]} 20. c5 {[%clk 0:01:59.8]} 20... Nd7 {[%clk 0:01:17.3]} 21. Qe4
{[%clk 0:01:56.8]} 21... f5 {[%clk 0:01:13.5]} 22. Qf4 {[%clk 0:01:24.5]} 22...
Nxe5 {[%clk 0:01:02]} 23. dxe5 {[%clk 0:01:25.4]} 23... Bxc5 {[%clk 0:00:58.9]}
24. Qc4 {[%clk 0:01:24.9]} 24... Kh8 {[%clk 0:00:47.3]} 25. b4 {[%clk
0:01:22.3]} 25... Bf8 {[%clk 0:00:41.7]} 26. Be2 {[%clk 0:01:16.5]} 26... c5
{[%clk 0:00:31.4]} 27. b5 {[%clk 0:01:16.4]} 27... Bd5 {[%clk 0:00:30.6]} 28.
Qh4 {[%clk 0:01:16.4]} 28... c4 {[%clk 0:00:26.8]} 29. Bc3 {[%clk 0:01:11.5]}
29... Bc5 {[%clk 0:00:24.7]} 30. Bh5 {[%clk 0:00:39.9]} 30... Qe7 {[%clk
0:00:21.1]} 31. Qh3 {[%clk 0:00:37.7]} 31... Red8 {[%clk 0:00:19.7]} 32. Kh1
{[%clk 0:00:33.2]} 32... Bb4 {[%clk 0:00:17.5]} 33. Bd4 {[%clk 0:00:25.9]} 33...
c3 {[%clk 0:00:16.8]} 34. Rc1 {[%clk 0:00:24.1]} 34... c2 {[%clk 0:00:14.4]} 35.
Be3 {[%clk 0:00:18.8]} 35... Ba3 {[%clk 0:00:06.4]} 36. Bg6 {[%clk 0:00:18.6]}
36... Bxc1 {[%clk 0:00:05.7]} 37. Rxc1 {[%clk 0:00:12.9]} 37... Kg8 {[%clk
0:00:06.2]} 38. Qg3 {[%clk 0:00:05.5]} 38... Be4 {[%clk 0:00:03.2]} 39. h4
{[%clk 0:00:05.2]} 39... Rd1+ {[%clk 0:00:03.5]} 40. Kh2 {[%clk 0:00:05.4]}
40... Qa3 {[%clk 0:00:02]} 41. Bxh6 {[%clk 0:00:01.1]} 41... Qxg3+ {[%clk
0:00:01.5]} 0-1

[Event "Early-Titled-Tuesday-Blitz-October-24-2023"]
[Site "Chess.com"]
[Date "2023.10.24"]
[Round "6"]
[White "the_chess_child"]
[Black "Korchmar_Vasiliy"]
[Result "1-0"]
[WhiteElo "2952"]
[BlackElo "2767"]
[TimeControl "180+1"]
[EndTime "9:05:26 PDT"]
[Termination "the_chess_child won on time"]

1. e4 {[%clk 0:03:00.9]} 1... c5 {[%clk 0:03:00.2]} 2. Nf3 {[%clk 0:03:00.2]}
2... d6 {[%clk 0:03:00.9]} 3. d3 {[%clk 0:03:00]} 3... Nc6 {[%clk 0:03:00.6]} 4.
g3 {[%clk 0:03:00.3]} 4... g6 {[%clk 0:03:01.1]} 5. Bg2 {[%clk 0:02:58.2]} 5...
Bg7 {[%clk 0:03:01.7]} 6. O-O {[%clk 0:02:58.9]} 6... e5 {[%clk 0:03:02]} 7. Nc3
{[%clk 0:02:58.6]} 7... Nge7 {[%clk 0:03:02.5]} 8. Nd2 {[%clk 0:02:58.9]} 8...
O-O {[%clk 0:03:02.7]} 9. Nc4 {[%clk 0:02:59.6]} 9... f5 {[%clk 0:02:51.4]} 10.
f4 {[%clk 0:02:58.7]} 10... Be6 {[%clk 0:02:42.5]} 11. Nd5 {[%clk 0:02:57]}
11... Kh8 {[%clk 0:02:02.5]} 12. c3 {[%clk 0:02:54.3]} 12... Qd7 {[%clk
0:01:59.7]} 13. a4 {[%clk 0:02:49.3]} 13... Rae8 {[%clk 0:01:56.7]} 14. a5
{[%clk 0:02:35.8]} 14... Nd8 {[%clk 0:01:44.7]} 15. Qa4 {[%clk 0:02:21.2]} 15...
Qxa4 {[%clk 0:01:32.3]} 16. Rxa4 {[%clk 0:02:22.1]} 16... Nxd5 {[%clk
0:01:32.6]} 17. exd5 {[%clk 0:02:22]} 17... Bd7 {[%clk 0:01:33.2]} 18. Ra1
{[%clk 0:02:19.4]} 18... Nf7 {[%clk 0:01:33.3]} 19. fxe5 {[%clk 0:02:12.1]}
19... Bxe5 {[%clk 0:01:33.7]} 20. Bd2 {[%clk 0:02:03]} 20... Bb5 {[%clk
0:01:33.5]} 21. Rae1 {[%clk 0:01:58.2]} 21... Bxc4 {[%clk 0:01:33.4]} 22. dxc4
{[%clk 0:01:57.4]} 22... Kg7 {[%clk 0:01:28.9]} 23. b4 {[%clk 0:01:52.6]} 23...
cxb4 {[%clk 0:01:20.3]} 24. cxb4 {[%clk 0:01:52.8]} 24... Bd4+ {[%clk 0:01:21]}
25. Kh1 {[%clk 0:01:52.6]} 25... Ne5 {[%clk 0:01:21.7]} 26. Rf4 {[%clk
0:01:44.5]} 26... Bb2 {[%clk 0:01:06.1]} 27. Rb1 {[%clk 0:01:26.9]} 27... g5
{[%clk 0:00:43.5]} 28. Rff1 {[%clk 0:01:26.7]} 28... Bd4 {[%clk 0:00:35.9]} 29.
c5 {[%clk 0:01:24.7]} 29... Nd3 {[%clk 0:00:25.3]} 30. c6 {[%clk 0:01:16.7]}
30... bxc6 {[%clk 0:00:09.9]} 31. dxc6 {[%clk 0:01:16.6]} 31... Re2 {[%clk
0:00:04.8]} 32. Bxg5 {[%clk 0:01:10.9]} 32... Nf2+ {[%clk 0:00:05.2]} 33. Rxf2
{[%clk 0:01:10.9]} 33... Rxf2 {[%clk 0:00:06.1]} 34. b5 {[%clk 0:00:47.8]} 34...
Re8 {[%clk 0:00:05.6]} 35. Bf1 {[%clk 0:00:25.4]} 35... Rc2 {[%clk 0:00:03.1]}
36. Bf4 {[%clk 0:00:20.7]} 36... Be5 {[%clk 0:00:02.4]} 37. Bxe5+ {[%clk
0:00:20.5]} 37... Rxe5 {[%clk 0:00:03.3]} 38. Bd3 {[%clk 0:00:20.2]} 38... Rc3
{[%clk 0:00:03.1]} 39. Bf1 {[%clk 0:00:19.8]} 39... Rc2 {[%clk 0:00:02.2]} 40.
b6 {[%clk 0:00:18.9]} 40... axb6 {[%clk 0:00:02.5]} 41. axb6 {[%clk 0:00:19.8]}
41... Re8 {[%clk 0:00:01.5]} 42. c7 {[%clk 0:00:18.7]} 42... d5 {[%clk
0:00:01.1]} 43. Bd3 {[%clk 0:00:14]} 43... Rc3 {[%clk 0:00:01.2]} 44. Bxf5
{[%clk 0:00:14]} 1-0